fUST/lending_fUST_20241229
["ID","MTS","AMOUNT","RATE_DAILY","PERIOD"]
[346956516,1735426052121,-426.35389268,0.00017665,2]
[346956517,1735426052142,-114.61125029,0.00017665,2]
[346956582,1735426232452,-400.0,0.00013973,2]
[346956583,1735426232462,-604.82095573,0.00017565,3]
[346956584,1735426232472,-300.0,0.00017666,2]
[346956585,1735426232482,-500.0,0.00017667,2]
[346956586,1735426232492,-500.0,0.00017667,2]
[346956587,1735426232501,-217.96170468,0.00017667,2]
[346956588,1735426232511,-465.38888668,0.00017667,2]
[346956589,1735426232523,-255.16665348,0.00017667,2]
[346956590,1735426232532,-148.89273633,0.00017667,2]
[346956604,1735426238178,-351.10726367,0.00017667,2]
[346956605,1735426238188,-148.89502408,0.00017667,2]
[346956606,1735426238199,-351.10497592,0.00017667,2]
[346956607,1735426238208,-500.0,0.00017667,2]
[346956608,1735426238218,-500.0,0.00017667,2]
[346956609,1735426238227,-500.0,0.00017667,2]
[346956610,1735426238237,-489.66396772,0.00017667,2]
[346956611,1735426238247,-500.0,0.00017667,2]
[346956612,1735426238256,-581.7256097,0.00017667,2]
[346956613,1735426238266,-500.0,0.00017667,2]
[346956614,1735426238275,-500.0,0.00017667,2]
[346956615,1735426238286,-206.99733592,0.00017667,2]
[346956616,1735426238299,-350.46266408,0.00017667,2]
[346956617,1735426238309,-500.0,0.00017667,2]
[346956618,1735426238318,-500.0,0.00017667,2]
[346956619,1735426238327,-500.0,0.00017667,2]
[346956620,1735426238337,-500.0,0.00017667,2]
[346956621,1735426238346,-1143.55,0.00017667,2]
[346956622,1735426238355,-500.0,0.00017667,2]
[346956623,1735426238364,-500.0,0.00017667,2]
[346956624,1735426238373,-178.045,0.00017668,2]
[346956625,1735426238383,-500.0,0.00017668,2]
[346956626,1735426238392,-500.0,0.00017668,2]
[346956627,1735426238402,-500.0,0.00017668,2]
[346956628,1735426238411,-188.3399742,0.00017668,2]
[346956629,1735426238420,-500.0,0.00017668,2]
[346956630,1735426238429,-500.0,0.00017668,2]
[346956631,1735426238439,-389.85238776,0.00017668,2]
[346956632,1735426238450,-110.14761224,0.00017668,2]
[346956633,1735426238459,-500.0,0.00017668,2]
[346956634,1735426238469,-500.0,0.00017668,2]
[346956635,1735426238479,-500.0,0.00017668,2]
[346956636,1735426238489,-500.0,0.00017668,2]
[346956637,1735426238500,-500.0,0.00017668,2]
[346956638,1735426238510,-500.0,0.00017668,2]
[346956639,1735426238520,-516.53,0.00017668,2]
[346956640,1735426238529,-500.0,0.00017668,2]
[346956641,1735426238539,-1541.07,0.00017668,2]
[346956642,1735426238548,-500.0,0.00017668,2]
[346956643,1735426238558,-500.0,0.00017668,2]
[346956644,1735426238567,-500.0,0.00017668,2]
[346956645,1735426238576,-568.38,0.00017668,2]
[346956646,1735426238587,-2396.87238776,0.00017668,2]
[346956647,1735426238601,-1156.33572,0.00017668,2]
[346956648,1735426238613,-282.33189224,0.00017668,2]
[346956649,1735426238623,-500.0,0.00017668,2]
[346956650,1735426238631,-709.00485144,0.00017668,2]
[346956686,1735426240366,-500.0,0.00017667,2]
[346956688,1735426240377,-5690.55514856,0.00017668,2]
[346956690,1735426240387,-500.0,0.00017668,2]
[346956693,1735426240396,-710.45,0.00017669,2]
[346956695,1735426240406,-500.0,0.00017669,2]
[346956696,1735426240415,-638.36,0.00017669,2]
[346956698,1735426240424,-1566.78,0.0001767,2]
[346956701,1735426240434,-500.0,0.00017941,2]
[346956703,1735426240444,-557.46,0.00017941,2]
[346956705,1735426240454,-500.0,0.00017941,2]
[346956707,1735426240463,-1143.55,0.00017941,2]
[346956709,1735426240472,-267.67,0.00017942,2]
[346956710,1735426240482,-317.19,0.00017942,2]
[346956713,1735426240492,-500.0,0.00017942,2]
[346956715,1735426240502,-575.74,0.00017942,2]
[346956717,1735426240512,-500.0,0.00017942,2]
[346956719,1735426240521,-500.0,0.00017942,2]
[346956721,1735426240531,-500.0,0.00017942,2]
[346956723,1735426240540,-500.0,0.00017942,2]
[346956725,1735426240550,-1541.07,0.00017942,2]
[346956727,1735426240559,-500.0,0.00017942,2]
[346956729,1735426240569,-500.0,0.00017942,2]
[346956731,1735426240578,-500.0,0.00017942,2]
[346956733,1735426240587,-3835.54,0.00017942,2]
[346956735,1735426240597,-500.0,0.00017942,2]
[346956737,1735426240606,-6399.56,0.00017942,2]
[346956739,1735426240616,-710.45,0.00017943,2]
[346956741,1735426240625,-500.0,0.00017943,2]
[346956742,1735426240635,-1566.78,0.00017944,2]
[346956744,1735426240645,-500.0,0.00018215,2]
[346956746,1735426240655,-500.0,0.00018215,2]
[346956748,1735426240664,-211.07521814,0.00018215,2]
[346956749,1735426240673,-500.0,0.00018215,2]
[346956751,1735426240683,-460.62790582,0.00018215,2]
[346956753,1735426240692,-557.46,0.00018215,2]
[346956755,1735426240701,-500.0,0.00018215,2]
[346956757,1735426240710,-1143.55,0.00018215,2]
[346956759,1735426240720,-500.0,0.00018216,2]
[346956761,1735426240729,-500.0,0.00018216,2]
[346956763,1735426240738,-500.0,0.00018216,2]
[346956765,1735426240748,-500.0,0.00018216,2]
[346956767,1735426240757,-500.0,0.00018216,2]
[346956769,1735426240767,-1541.07,0.00018216,2]
[346956771,1735426240776,-500.0,0.00018216,2]
[346956773,1735426240785,-500.0,0.00018216,2]
[346956775,1735426240795,-182.52,0.00018216,2]
[346956777,1735426240804,-3835.54,0.00018216,2]
[346956779,1735426240813,-500.0,0.00018216,2]
[346956781,1735426240822,-701.50172746,0.00018216,2]
[346956822,1735426243340,-2080.19188378,0.00018216,2]
[346956823,1735426243361,-3617.86638876,0.00018216,2]
[346956824,1735426243371,-710.45,0.00018217,2]
[346956825,1735426243381,-500.0,0.00018217,2]
[346956826,1735426243391,-1566.78,0.00018218,2]
[346956827,1735426243401,-286.60361132,0.00018421,2]
[346957849,1735427141131,-400.0,0.00013973,2]
[346957850,1735427141154,-154.02112611,0.00017312,2]
[346957851,1735427141176,-154.02112611,0.00017487,2]
[346957853,1735427141197,-532.27637566,0.00017567,2]
[346957854,1735427141219,-300.0,0.00017664,2]
[346957855,1735427141239,-467.28028702,0.00017665,2]
[346957856,1735427141259,-380.00059124,0.00017665,2]
[346957857,1735427141280,-363.51381098,0.00017665,2]
[346957961,1735427227109,-903.88187056,0.00017313,2]
[346957962,1735427227131,-138.32498494,0.00017488,2]
[346957964,1735427228135,-765.55688562,0.00017488,2]
[346957965,1735427228159,-180.75233169,0.00017566,2]
[346957966,1735427228181,-300.0,0.00017664,2]
[346957967,1735427228203,-21.52939865,0.00017665,2]
[346957968,1735427228226,-500.0,0.00017665,2]
[346957969,1735427228249,-500.0,0.00017665,2]
[346957970,1735427228272,-93.02986373,0.00017665,2]
[346957985,1735427235178,-406.97013627,0.00017665,2]
[346957986,1735427235201,-315.42758099,0.00017665,2]
[346957987,1735427235225,-517.98784081,0.00017665,2]
[346957988,1735427235248,-134.16706765,0.00017665,2]
[346957994,1735427240108,-388.30532099,0.00017665,2]
[346957995,1735427240134,-500.0,0.00017665,2]
[346957996,1735427240158,-500.0,0.00017665,2]
[346957997,1735427240178,-194.45936651,0.00017665,2]
[346957998,1735427240201,-83.19196047,0.00017665,2]
[346958153,1735427432725,-425.82110056,0.00017566,2]
[346958154,1735427432734,-300.0,0.00017664,2]
[346958155,1735427432748,-338.12961696,0.00017665,2]
[346958156,1735427432757,-281.34296402,0.00017665,2]
[346958157,1735427432767,-500.0,0.00017665,2]
[346958158,1735427432777,-500.0,0.00017665,2]
[346958159,1735427432786,-500.0,0.00017665,2]
[346958160,1735427432795,-500.0,0.00017665,2]
[346958161,1735427432804,-500.0,0.00017665,2]
[346958162,1735427432814,-500.0,0.00017665,2]
[346958163,1735427432824,-500.0,0.00017665,2]
[346958164,1735427432834,-500.0,0.00017665,2]
[346958165,1735427432843,-500.0,0.00017665,2]
[346958166,1735427432852,-697.52,0.00017665,2]
[346958167,1735427432862,-500.0,0.00017665,2]
[346958168,1735427432873,-500.0,0.00017665,2]
[346958169,1735427432883,-500.0,0.00017665,2]
[346958170,1735427432892,-500.0,0.00017665,2]
[346958171,1735427432902,-500.0,0.00017665,2]
[346958172,1735427432911,-500.0,0.00017665,2]
[346958173,1735427432921,-500.0,0.00017665,2]
[346958174,1735427432931,-376.69601759,0.00017665,2]
[346958175,1735427432940,-500.0,0.00017665,2]
[346958176,1735427432950,-687.93,0.00017665,2]
[346958177,1735427432960,-500.0,0.00017665,2]
[346958178,1735427432969,-500.0,0.00017665,2]
[346958179,1735427432979,-500.0,0.00017665,2]
[346958180,1735427432989,-500.0,0.00017665,2]
[346958181,1735427432999,-500.0,0.00017665,2]
[346958182,1735427433008,-500.0,0.00017665,2]
[346958183,1735427433017,-551.94,0.00017665,2]
[346958184,1735427433027,-500.0,0.00017665,2]
[346958185,1735427433036,-500.0,0.00017665,2]
[346958186,1735427433047,-3356.09,0.00017665,2]
[346958187,1735427433057,-500.0,0.00017665,2]
[346958188,1735427433066,-500.0,0.00017665,2]
[346958189,1735427433076,-168.97275749,0.00017665,2]
[346958190,1735427433085,-1423.83,0.00017665,2]
[346958191,1735427433095,-500.0,0.00017665,2]
[346958192,1735427433105,-500.0,0.00017665,2]
[346958193,1735427433114,-500.0,0.00017665,2]
[346958194,1735427433124,-659.68,0.00017665,2]
[346958195,1735427433133,-659.68,0.00017665,2]
[346958196,1735427433142,-194.21,0.00017665,2]
[346958197,1735427433152,-500.0,0.00017665,2]
[346958198,1735427433162,-171.86341661,0.00017666,2]
[346958199,1735427433172,-659.61929993,0.00017666,2]
[346958200,1735427433182,-216.414,0.00017666,2]
[346958201,1735427433192,-500.0,0.00017666,2]
[346958202,1735427433202,-500.0,0.00017666,2]
[346958203,1735427433212,-500.0,0.00017666,2]
[346958204,1735427433221,-500.0,0.00017666,2]
[346958205,1735427433231,-500.0,0.00017666,2]
[346958206,1735427433242,-500.0,0.00017666,2]
[346958207,1735427433252,-500.0,0.00017666,2]
[346958208,1735427433262,-500.0,0.00017666,2]
[346958209,1735427433272,-501.87509244,0.00017666,2]
[346958210,1735427433282,-500.0,0.00017666,2]
[346958211,1735427433292,-502.07672888,0.00017666,2]
[346958212,1735427433301,-500.0,0.00017666,2]
[346958213,1735427433311,-500.0,0.00017666,2]
[346958214,1735427433320,-500.0,0.00017666,2]
[346958215,1735427433330,-500.0,0.00017666,2]
[346958216,1735427433339,-500.0,0.00017666,2]
[346958217,1735427433350,-542.48735587,0.00017666,2]
[346958218,1735427433360,-500.0,0.00017666,2]
[346958219,1735427433370,-500.0,0.00017666,2]
[346958220,1735427433380,-500.0,0.00017666,2]
[346958221,1735427433390,-500.0,0.00017666,2]
[346958222,1735427433400,-500.0,0.00017666,2]
[346958223,1735427433410,-500.0,0.00017666,2]
[346958224,1735427433420,-500.0,0.00017666,2]
[346958225,1735427433431,-500.0,0.00017666,2]
[346958226,1735427433440,-500.0,0.00017666,2]
[346958227,1735427433449,-500.0,0.00017666,2]
[346958228,1735427433460,-500.0,0.00017666,2]
[346958229,1735427433470,-236.29776594,0.00017666,2]
[346958230,1735427433480,-336.0,0.00017666,2]
[346958231,1735427433491,-500.0,0.00017666,2]
[346958232,1735427433500,-377.37949813,0.00017666,2]
[346958233,1735427433510,-500.0,0.00017666,2]
[346958234,1735427433520,-500.0,0.00017666,2]
[346958235,1735427433530,-500.0,0.00017666,2]
[346958236,1735427433539,-500.0,0.00017666,2]
[346958237,1735427433549,-2966.22,0.00017666,2]
[346958238,1735427433558,-2966.22,0.00017666,2]
[346958239,1735427433568,-2966.22,0.00017666,2]
[346958240,1735427433577,-2966.22,0.00017666,2]
[346958241,1735427433587,-2966.22,0.00017666,2]
[346958242,1735427433596,-500.0,0.00017666,2]
[346958243,1735427433606,-500.0,0.00017666,2]
[346958244,1735427433616,-500.0,0.00017666,2]
[346958245,1735427433626,-500.0,0.00017666,2]
[346958246,1735427433636,-500.0,0.00017666,2]
[346958247,1735427433645,-500.0,0.00017666,2]
[346958248,1735427433655,-500.0,0.00017666,2]
[346958249,1735427433665,-500.0,0.00017666,2]
[346958250,1735427433675,-500.0,0.00017666,2]
[346958251,1735427433685,-500.0,0.00017666,2]
[346958252,1735427433791,-500.0,0.00017666,2]
[346958253,1735427433803,-500.0,0.00017666,2]
[346958254,1735427433813,-500.0,0.00017666,2]
[346958255,1735427433823,-500.0,0.00017666,2]
[346958256,1735427433833,-500.0,0.00017666,2]
[346958257,1735427433843,-500.0,0.00017666,2]
[346958258,1735427433852,-500.0,0.00017666,2]
[346958259,1735427433862,-500.0,0.00017666,2]
[346958260,1735427433871,-500.0,0.00017666,2]
[346958261,1735427433881,-500.0,0.00017666,2]
[346958262,1735427433892,-500.0,0.00017666,2]
[346958263,1735427433902,-500.0,0.00017666,2]
[346958264,1735427433912,-500.0,0.00017666,2]
[346958265,1735427433922,-500.0,0.00017666,2]
[346958266,1735427433932,-500.0,0.00017666,2]
[346958267,1735427433942,-500.0,0.00017666,2]
[346958268,1735427433952,-500.0,0.00017666,2]
[346958269,1735427433962,-500.0,0.00017666,2]
[346958270,1735427433972,-500.0,0.00017666,2]
[346958271,1735427433982,-500.0,0.00017666,2]
[346958272,1735427433991,-500.0,0.00017666,2]
[346958273,1735427434001,-245.11446634,0.00017666,2]
[346958274,1735427434011,-500.0,0.00017666,2]
[346958275,1735427434021,-500.0,0.00017666,2]
[346958276,1735427434030,-500.0,0.00017666,2]
[346958277,1735427434040,-500.0,0.00017666,2]
[346958278,1735427434049,-500.0,0.00017666,2]
[346958279,1735427434058,-500.0,0.00017666,2]
[346958280,1735427434069,-500.0,0.00017666,2]
[346958281,1735427434079,-500.0,0.00017666,2]
[346958282,1735427434088,-500.0,0.00017666,2]
[346958283,1735427434098,-500.0,0.00017666,2]
[346958284,1735427434108,-508.71468515,0.00017666,2]
[346958285,1735427434118,-500.0,0.00017666,2]
[346958286,1735427434127,-500.0,0.00017666,2]
[346958287,1735427434137,-500.0,0.00017666,2]
[346958288,1735427434146,-500.0,0.00017666,2]
[346958289,1735427434156,-500.0,0.00017666,2]
[346958290,1735427434166,-500.0,0.00017666,2]
[346958291,1735427434176,-500.0,0.00017666,2]
[346958292,1735427434187,-500.0,0.00017666,2]
[346958293,1735427434197,-435.02412675,0.00017666,2]
[346958310,1735427438385,-6973.53,0.00017665,2]
[346958311,1735427438396,-500.0,0.00017665,2]
[346958312,1735427438405,-64.97587325,0.00017666,2]
[346958313,1735427438415,-500.0,0.00017666,2]
[346958314,1735427438425,-500.0,0.00017666,2]
[346958315,1735427438438,-500.0,0.00017666,2]
[346958316,1735427438447,-553.78,0.00017666,2]
[346958317,1735427438458,-641.13205393,0.00017666,2]
[346958318,1735427438468,-500.0,0.00017666,2]
[346958319,1735427438478,-500.0,0.00017666,2]
[346958320,1735427438488,-500.0,0.00017666,2]
[346958321,1735427438498,-500.0,0.00017666,2]
[346958322,1735427438508,-515.99479645,0.00017666,2]
[346958323,1735427438518,-500.0,0.00017666,2]
[346958324,1735427438529,-502.30225359,0.00017666,2]
[346958325,1735427438539,-500.0,0.00017666,2]
[346958326,1735427438548,-500.0,0.00017666,2]
[346958327,1735427438559,-310.1199343,0.00017666,2]
[346958328,1735427438569,-507.02354621,0.00017666,2]
[346958329,1735427438579,-500.0,0.00017666,2]
[346958330,1735427438589,-500.0,0.00017666,2]
[346958331,1735427438598,-500.0,0.00017666,2]
[346958332,1735427438607,-500.0,0.00017666,2]
[346958333,1735427438617,-500.0,0.00017666,2]
[346958334,1735427438627,-500.0,0.00017666,2]
[346958335,1735427438637,-500.0,0.00017666,2]
[346958336,1735427438646,-504.28700701,0.00017666,2]
[346958337,1735427438655,-500.0,0.00017666,2]
[346958338,1735427438664,-500.0,0.00017666,2]
[346958339,1735427438673,-500.0,0.00017666,2]
[346958340,1735427438683,-500.0,0.00017666,2]
[346958341,1735427438694,-500.0,0.00017666,2]
[346958342,1735427438704,-500.0,0.00017666,2]
[346958343,1735427438714,-500.0,0.00017666,2]
[346958344,1735427438723,-500.0,0.00017666,2]
[346958345,1735427438733,-500.0,0.00017666,2]
[346958346,1735427438743,-500.0,0.00017666,2]
[346958347,1735427438752,-500.0,0.00017666,2]
[346958348,1735427438761,-500.0,0.00017666,2]
[346958349,1735427438772,-400.57267527,0.00017666,2]
[346958350,1735427438781,-500.0,0.00017666,2]
[346958351,1735427438792,-500.0,0.00017666,2]
[346958352,1735427438802,-500.0,0.00017666,2]
[346958353,1735427438813,-500.0,0.00017666,2]
[346958354,1735427438825,-500.0,0.00017666,2]
[346958355,1735427438835,-500.0,0.00017666,2]
[346958356,1735427438845,-503.76599879,0.00017666,2]
[346958357,1735427438855,-500.0,0.00017666,2]
[346958358,1735427438865,-500.0,0.00017666,2]
[346958359,1735427438876,-500.0,0.00017666,2]
[346958360,1735427438887,-500.0,0.00017666,2]
[346958361,1735427438898,-500.0,0.00017666,2]
[346958362,1735427438909,-500.0,0.00017666,2]
[346958363,1735427438919,-500.0,0.00017666,2]
[346958364,1735427438928,-500.0,0.00017666,2]
[346958365,1735427438937,-500.0,0.00017666,2]
[346958366,1735427438947,-500.0,0.00017666,2]
[346958367,1735427438956,-414.68898446,0.00017666,2]
[346958368,1735427438966,-500.0,0.00017666,2]
[346958369,1735427438975,-500.0,0.00017666,2]
[346958370,1735427438984,-500.0,0.00017666,2]
[346958371,1735427438994,-511.04218299,0.00017666,2]
[346958372,1735427439003,-500.0,0.00017666,2]
[346958373,1735427439013,-500.0,0.00017666,2]
[346958374,1735427439022,-500.0,0.00017666,2]
[346958375,1735427439031,-508.13648852,0.00017666,2]
[346958376,1735427439041,-500.0,0.00017666,2]
[346958377,1735427439051,-500.0,0.00017666,2]
[346958378,1735427439060,-504.30856158,0.00017666,2]
[346958379,1735427439070,-500.0,0.00017666,2]
[346958380,1735427439081,-500.27646746,0.00017666,2]
[346958381,1735427439090,-500.0,0.00017666,2]
[346958382,1735427439101,-500.0,0.00017666,2]
[346958383,1735427439111,-500.0,0.00017666,2]
[346958384,1735427439121,-500.0,0.00017666,2]
[346958385,1735427439130,-500.0,0.00017666,2]
[346958386,1735427439139,-502.4294128,0.00017666,2]
[346958387,1735427439149,-500.0,0.00017666,2]
[346958388,1735427439158,-500.0,0.00017666,2]
[346958389,1735427439168,-72.01355563,0.00017666,2]
[346958390,1735427439182,-427.98644437,0.00017666,2]
[346958391,1735427439192,-216.22268764,0.00017666,2]
[346958392,1735427439203,-283.77731236,0.00017666,2]
[346958393,1735427439213,-500.0,0.00017666,2]
[346958394,1735427439222,-500.0,0.00017666,2]
[346958395,1735427439231,-500.0,0.00017666,2]
[346958396,1735427439241,-500.0,0.00017666,2]
[346958397,1735427439251,-500.0,0.00017666,2]
[346958398,1735427439260,-500.0,0.00017666,2]
[346958399,1735427439269,-500.0,0.00017666,2]
[346958400,1735427439278,-493.07286545,0.00017666,2]
[346958401,1735427439288,-500.0,0.00017666,2]
[346958402,1735427439298,-500.0,0.00017666,2]
[346958403,1735427439307,-500.0,0.00017666,2]
[346958404,1735427439317,-503.27991233,0.00017666,2]
[346958405,1735427439327,-500.0,0.00017666,2]
[346958406,1735427439336,-500.0,0.00017666,2]
[346958407,1735427439345,-500.0,0.00017666,2]
[346958408,1735427439355,-500.0,0.00017666,2]
[346958409,1735427439364,-500.0,0.00017666,2]
[346958410,1735427439374,-500.0,0.00017666,2]
[346958411,1735427439383,-500.0,0.00017666,2]
[346958412,1735427439392,-500.0,0.00017666,2]
[346958413,1735427439403,-500.0,0.00017666,2]
[346958414,1735427439412,-500.0,0.00017666,2]
[346958415,1735427439423,-500.0,0.00017666,2]
[346958416,1735427439433,-500.0,0.00017666,2]
[346958417,1735427439442,-500.0,0.00017666,2]
[346958418,1735427439451,-500.0,0.00017666,2]
[346958419,1735427439461,-631.42,0.00017666,2]
[346958420,1735427439471,-500.0,0.00017666,2]
[346958421,1735427439480,-500.0,0.00017666,2]
[346958422,1735427439491,-501.59978579,0.00017666,2]
[346958423,1735427439500,-501.83621795,0.00017666,2]
[346958424,1735427439509,-500.0,0.00017666,2]
[346958425,1735427439518,-500.0,0.00017666,2]
[346958426,1735427439527,-500.0,0.00017666,2]
[346958427,1735427439537,-500.0,0.00017666,2]
[346958428,1735427439546,-500.0,0.00017666,2]
[346958429,1735427439555,-500.0,0.00017666,2]
[346958430,1735427439564,-500.0,0.00017666,2]
[346958431,1735427439573,-500.0,0.00017666,2]
[346958432,1735427439582,-316.60468539,0.00017666,2]
[346958433,1735427439591,-215.42496041,0.00017666,2]
[346958434,1735427439604,-284.57503959,0.00017666,2]
[346958435,1735427439613,-500.0,0.00017666,2]
[346958436,1735427439622,-500.0,0.00017666,2]
[346958437,1735427439631,-500.0,0.00017666,2]
[346958438,1735427439640,-500.0,0.00017666,2]
[346958439,1735427439649,-500.0,0.00017666,2]
[346958440,1735427439658,-500.0,0.00017666,2]
[346958441,1735427439668,-500.0,0.00017666,2]
[346958442,1735427439677,-561.79509639,0.00017666,2]
[346958443,1735427439686,-500.0,0.00017666,2]
[346958444,1735427439695,-500.0,0.00017666,2]
[346958445,1735427439705,-500.0,0.00017666,2]
[346958446,1735427439714,-500.0,0.00017666,2]
[346958447,1735427439726,-500.0,0.00017666,2]
[346958448,1735427439736,-500.0,0.00017666,2]
[346958449,1735427439746,-500.0,0.00017666,2]
[346958450,1735427439755,-503.85016489,0.00017666,2]
[346958451,1735427439766,-611.2,0.00017666,2]
[346958452,1735427439775,-500.0,0.00017666,2]
[346958453,1735427439785,-500.0,0.00017666,2]
[346958454,1735427439794,-500.0,0.00017666,2]
[346958455,1735427439805,-500.0,0.00017666,2]
[346958456,1735427439815,-500.0,0.00017666,2]
[346958457,1735427439825,-500.0,0.00017666,2]
[346958458,1735427439835,-500.0,0.00017666,2]
[346958459,1735427439844,-500.0,0.00017666,2]
[346958460,1735427439853,-183.83691903,0.00017666,2]
[346958461,1735427439863,-500.0,0.00017666,2]
[346958462,1735427439873,-500.0,0.00017666,2]
[346958463,1735427439882,-612.07397462,0.00017666,2]
[346958464,1735427439892,-500.0,0.00017666,2]
[346958465,1735427439903,-500.0,0.00017666,2]
[346958466,1735427439913,-500.0,0.00017666,2]
[346958467,1735427439922,-419.78398278,0.00017666,2]
[346958468,1735427439934,-80.21601722,0.00017666,2]
[346958469,1735427439944,-500.0,0.00017666,2]
[346958470,1735427439954,-534.85030455,0.00017666,2]
[346958471,1735427439964,-500.0,0.00017666,2]
[346958472,1735427439974,-500.0,0.00017666,2]
[346958473,1735427439983,-151.30620116,0.00017666,2]
[346958530,1735427443394,-315.498,0.00017665,2]
[346958563,1735427446476,-106.38616398,0.00017665,2]
[346958564,1735427446485,-500.0,0.00017665,2]
[346958565,1735427446495,-348.69379884,0.00017666,2]
[346958566,1735427446504,-500.0,0.00017666,2]
[346958567,1735427446514,-500.0,0.00017666,2]
[346958568,1735427446525,-500.0,0.00017666,2]
[346958569,1735427446535,-500.0,0.00017666,2]
[346958570,1735427446546,-500.0,0.00017666,2]
[346958571,1735427446556,-500.0,0.00017666,2]
[346958572,1735427446566,-500.0,0.00017666,2]
[346958573,1735427446575,-500.0,0.00017666,2]
[346958574,1735427446585,-500.0,0.00017666,2]
[346958575,1735427446595,-535.79504442,0.00017666,2]
[346958576,1735427446605,-500.0,0.00017666,2]
[346958577,1735427446614,-500.0,0.00017666,2]
[346958578,1735427446624,-500.0,0.00017666,2]
[346958579,1735427446633,-189.8855529,0.00017666,2]
[346958580,1735427446643,-500.0,0.00017666,2]
[346958581,1735427446652,-500.0,0.00017666,2]
[346958582,1735427446661,-500.0,0.00017666,2]
[346958583,1735427446670,-500.0,0.00017666,2]
[346958585,1735427446679,-500.0,0.00017666,2]
[346958587,1735427446689,-500.0,0.00017666,2]
[346958588,1735427446698,-500.0,0.00017666,2]
[346958589,1735427446708,-500.0,0.00017666,2]
[346958590,1735427446717,-500.0,0.00017666,2]
[346958591,1735427446726,-500.0,0.00017666,2]
[346958592,1735427446735,-500.0,0.00017666,2]
[346958593,1735427446744,-500.0,0.00017666,2]
[346958594,1735427446754,-500.0,0.00017666,2]
[346958595,1735427446763,-500.0,0.00017666,2]
[346958596,1735427446772,-500.0,0.00017666,2]
[346958597,1735427446781,-500.0,0.00017666,2]
[346958598,1735427446791,-500.0,0.00017666,2]
[346958599,1735427446799,-547.15,0.00017666,2]
[346958600,1735427446809,-500.0,0.00017666,2]
[346958601,1735427446818,-500.0,0.00017666,2]
[346958602,1735427446826,-500.0,0.00017666,2]
[346958603,1735427446835,-500.0,0.00017666,2]
[346958604,1735427446844,-500.0,0.00017666,2]
[346958605,1735427446853,-500.0,0.00017666,2]
[346958606,1735427446862,-500.0,0.00017666,2]
[346958607,1735427446871,-500.0,0.00017666,2]
[346958608,1735427446880,-500.0,0.00017666,2]
[346958609,1735427446889,-500.0,0.00017666,2]
[346958610,1735427446898,-500.0,0.00017666,2]
[346958611,1735427446907,-500.0,0.00017666,2]
[346958612,1735427446917,-500.0,0.00017666,2]
[346958613,1735427446925,-500.0,0.00017666,2]
[346958614,1735427446934,-622.02,0.00017666,2]
[346958615,1735427446944,-500.0,0.00017666,2]
[346958616,1735427446954,-500.0,0.00017666,2]
[346958617,1735427446963,-500.0,0.00017666,2]
[346958618,1735427446973,-500.0,0.00017666,2]
[346958619,1735427446982,-500.0,0.00017666,2]